Cogmind - Beta 15 @@@ ROGUE MODE // 2025.06.18 @ 20:26:58 Player: f3-rnm Result: Destroyed by P-80 Master with Gamma Rifle Performance ------------- Evolutions (8) 4000 Regions Visited (17) 3400 Robots Destroyed (359) 1795 Value Destroyed (19527) 19527 Prototype IDs (49) 980 Alien Tech Used (5) 1000 Bonus (11975) 11975 TOTAL SCORE: 42677 Bonus ------- Triggered High Security 500 High Alert Combat Kills 6385 Follower Combat Kills 1184 Registered with UFD 300 Met Optimus in HQ 500 Met Zhirov 300 MAIN.C Attacked Warlord 500 Warlord Defense Kills 2826 Scanned by Researcher 500 Friendly Fire -1020 Cogmind --------- Core Integrity 0/1450 Matter 170/300 Energy 931/940 System Corruption 25% Temperature Cool (82) Movement Treading (135) Location -2/Testing Parts ------- > --- POWER (3) -------- Graviton Reactor > --- PROPULSION (2) --- Experimental Biometal Heavy Treads > --- UTILITY (12) ----- Experimental Heat Sink Large Storage Unit Experimental Energy Well Centrium Medium Armor Plating Improved Hacking Suite > --- WEAPON (6) ------- Improved Potential Cannon Compact Mass Driver > --- INVENTORY (15) --- Light Ion Engine Improved Quantum Reactor Wheel Advanced Coolant Injector Improved Energy Well (400) Advanced Energy Well (500) Experimental Energy Well (600) Gamma Rifle Enhanced Quantum Rifle Advanced KE Penetrator Gamma Bomb Array Advanced Remote Datajack Force Lance Peak State ------------ > --- POWER ------------ Reinforced Fission Core Particle Reactor Micro Antimatter Reactor > --- PROPULSION ------- Heavy Siege Treads > --- UTILITY ---------- Advanced Cryofiber Web Advanced Heat Sink Huge Storage Unit Enhanced Optical Array Improved Targeting Computer Experimental Core Analyzer Improved Weapon Cycler Advanced Transmission Jammer Advanced Phase Shifter Improved Medium Armor Plating Graphene Brace Advanced Force Field > --- WEAPON ----------- Compact HERF Cannon Heavy Neutron Cannon Core Cannon > --- INVENTORY -------- Light Antimatter Reactor Light Antimatter Reactor Particle Reactor Armored Heavy Treads Advanced Power Amplifier Advanced Heat Sink High-capacity Storage Unit Matter Compressor Experimental Matter Compressor Advanced Sensor Array Makeshift Terrain Scanner Improved Target Analyzer Experimental Cloaking Device Experimental Focal Shield Advanced Force Field Improved Hacking Suite High-powered Tractor Beam Subatomic Replicator Overtuned Beamcaster Overtuned Railgun Improved Remote Datajack Multitool Sigix Broadsword [Rating: 169] Favorites ----------- Power Light Neutrino Core Engine Ion Engine Power Core Light Neutrino Core Reactor Vortex Chain Reactor Propulsion Overtuned Huge Scrapsphere Treads Light Treads Leg Centrium Leg Wheel Overtuned Huge Scrapsphere Flight Unit Field Propulsion Array Utility Advanced Heat Sink Device Advanced Heat Sink Storage Cargo Storage Unit Processor Improved Targeting Computer Hackware Improved Hacking Suite Protection Heavy Reactive Plating Weapon Hypervelocity Gauss Rifle Energy Gun Cooled Plasma Rifle Energy Cannon Beam Cannon Ballistic Gun Hypervelocity Gauss Rifle Ballistic Cannon Slug Cannon Launcher Gamma Bomb Array Special Weapon Improved Remote Datajack Slashing Weapon Sigix Broadsword Piercing Weapon Force Lance Build | -11 -10 -10 -7 -5 -5 -5 -5 -4 -4 -4 -4 -4 -3 -3 -3 -2 -2 ------- Run | Yrd Mat Sub Scr Fac Upp Upp Zhi Pro Fac Upp Upp War Pro Res Qua Res Tes Slots Evolved 16 | . . . . 10 . . . . 2 . . . . 2 . 2 . Power 2 | . . . . 1 . . . . . . . . . 1 . . . Propulsion . | . . . . . . . . . . . . . . . . . . Utility 10 | . . . . 7 . . . . 2 . . . . 1 . . . Weapon 4 | . . . . 2 . . . . . . . . . . . 2 . Parts Attached 197 | 6 4 3 9 31 5 8 4 . 26 1 . 11 6 14 16 23 30 Power 30 | 1 . . 3 2 3 . 1 . 5 1 . 1 . 3 4 3 3 Engine 7 | 1 . . 3 . 1 . . . . . . . . . . 1 1 Core 12 | . . . . 2 2 . . . 5 1 . . . 1 1 . . Reactor 11 | . . . . . . . 1 . . . . 1 . 2 3 2 2 Propulsion 19 | 2 . 1 2 2 . . . . 1 . . . . . 2 6 3 Treads 9 | 2 . 1 . . . . . . 1 . . . . . 2 2 1 Leg 2 | . . . . . . . . . . . . . . . . 2 . Wheel 7 | . . . 2 2 . . . . . . . . . . . 1 2 Hover . | . . . . . . . . . . . . . . . . . . Flight 1 | . . . . . . . . . . . . . . . . 1 . Utility 81 | 1 3 1 1 16 . 4 2 . 10 . . 7 . 7 8 7 14 Device 42 | . . . . 9 . 2 1 . 5 . . 6 . 6 4 5 4 Storage 12 | 1 2 . 1 . . . . . 2 . . . . 1 1 . 4 Processor 7 | . . . . 2 . 1 . . 2 . . 1 . . 1 . . Hackware 5 | . . . . 3 . . . . . . . . . . . 1 1 Protection 15 | . 1 1 . 2 . 1 1 . 1 . . . . . 2 1 5 Artifact . | . . . . . . . . . . . . . . . . . . Weapon 67 | 2 1 1 3 11 2 4 1 . 10 . . 3 6 4 2 7 10 Energy Gun 10 | . . . . 3 . . . . 1 . . . . 1 . 1 4 Energy Cannon 11 | . 1 . . 1 . 1 . . . . . 2 . . 2 2 2 Ballistic Gun 31 | 2 . . 1 4 2 2 1 . 9 . . . 5 2 . 2 1 Ballistic Cannon 3 | . . 1 . 1 . . . . . . . . . . . . 1 Launcher 5 | . . . 2 . . . . . . . . . 1 . . . 2 Special Weapon 5 | . . . . 2 . 1 . . . . . 1 . 1 . . . Impact Weapon . | . . . . . . . . . . . . . . . . . . Slashing Weapon 1 | . . . . . . . . . . . . . . . . 1 . Piercing Weapon 1 | . . . . . . . . . . . . . . . . 1 . Special Melee Weapon . | . . . . . . . . . . . . . . . . . . Unidentified Prototypes 34 | . . . . 3 . 1 4 . 1 . . 5 . 1 3 3 13 Corrupted Parts 4 | . . . . . . . . . . . . . 2 1 . . 1 System Corruption 12 | . . . . . . . . . . . . . 2 4 . . 6 Parts Lost 76 | . . . 2 10 1 9 . . 9 . . . 1 8 12 11 13 Power 13 | . . . . 3 1 1 . . 2 . . . . 1 2 1 2 Propulsion 7 | . . . 1 . . 2 . . 1 . . . . . . 2 1 Utility 29 | . . . . 4 . 4 . . 2 . . . . 3 7 2 7 Weapon 27 | . . . 1 3 . 2 . . 4 . . . 1 4 3 6 3 Highest Loss Streak 7 | . . . 2 6 1 7 . . 3 . . . 1 2 2 6 5 To Critical Strikes . | . . . . . . . . . . . . . . . . . . Average Backups 19 | . 4 10 19 27 27 18 3 3 16 28 29 28 28 27 23 2 9 Power 1 | . 1 1 1 . . . . . 3 3 3 2 2 2 3 . 2 Propulsion . | . 1 1 1 2 2 1 . . . . . . . . . . 1 Utility 10 | . . 3 9 16 20 13 2 2 7 15 15 15 17 17 14 . 1 Weapon 4 | . 1 3 4 5 2 1 . . 3 8 8 8 7 5 3 1 3 Tool/Special . | . . . . . . . . . . . . . . . . . . Unused Backups 47 | . . 3 5 6 . 8 . . 2 2 . 6 . 1 8 1 5 Power 4 | . . . 1 . . . . . . . . 1 . . 1 . 1 Propulsion 1 | . . . . . . . . . 1 . . . . . . . . Utility 25 | . . . 2 2 . 8 . . . 2 . 2 . 1 6 . 2 Weapon 15 | . . 3 2 4 . . . . 1 . . 3 . . . 1 1 Tool/Special 2 | . . . . . . . . . . . . . . . 1 . 1 Average Slot Usage (%) 80 | . 85 100 88 81 79 77 59 82 79 84 85 82 78 77 85 15 55 Engine 4 | . 14 14 14 2 4 5 5 5 . . . . . . . . . Core 2 | . . . . 7 3 2 . . 5 9 10 6 . 1 4 . . Reactor 2 | . . . . . . . 3 5 2 . . 1 5 4 8 . 6 Treads 6 | . 28 28 11 . . . . . 1 . . . . . 2 . 3 Wheel 5 | . . . 16 5 5 5 5 5 4 5 5 5 5 4 1 . 1 Device 14 | . . . . 11 23 21 20 23 21 25 25 25 26 27 28 5 8 Storage 7 | . 14 14 14 5 5 3 . . 4 5 5 5 5 4 3 . 4 Processor 6 | . . . . 7 5 5 7 5 11 15 15 13 10 9 11 . . Hackware 3 | . . . . 9 5 5 5 5 4 5 5 5 5 4 2 . . Protection 3 | . . 14 3 3 . 1 5 5 2 . . . . . 2 . 11 Energy Gun 1 | . . . . 8 . . . . 1 . . . . 1 2 . 8 Energy Cannon 4 | . . 14 13 . . 4 . . . . . . . . 7 . 1 Ballistic Gun 10 | . 28 1 . 11 22 16 3 23 17 20 20 17 21 16 2 . 2 Ballistic Cannon 3 | . . 12 14 1 . . . . . . . . . . . . . Peak Build Rating 169 | 6 7 13 29 95 91 91 95 95 123 118 119 133 122 139 169 68 165 Average Rating 82 | 4 6 11 17 85 87 85 70 95 116 116 118 119 119 131 150 29 115 On Entrance 70 | . 6 7 13 25 72 91 85 95 95 111 118 119 119 122 136 5 41 Naked Turns 42 | . . . . . . . . . . . . . . . 25 17 . Heaviest Build 255 | 14 33 38 223 254 252 255 69 69 209 203 203 223 216 219 234 108 247 Greatest Support 85 | 40 40 40 40 26 20 20 20 20 20 20 20 20 20 20 70 60 85 Greatest Overweight (x) 68 | . . . 13 14 12 12 3 3 10 10 10 66 10 10 10 8 68 Average Overweight (x) 6 | . . . 5 11 11 6 1 3 6 9 10 10 10 9 5 . 3 Largest Inventory Capacity 35 | 8 15 15 35 35 35 35 5 5 30 30 30 30 30 30 30 25 15 Average Capacity 24 | 6 11 15 30 35 35 23 5 5 23 30 30 30 30 30 26 10 14 Most Carried 35 | 2 8 15 32 35 35 35 5 3 30 30 30 30 30 30 30 5 15 Average Carried 21 | . 4 14 22 32 33 22 4 3 16 29 30 29 29 27 24 4 9 Final Capacity 35 | 8 15 15 35 35 35 5 5 5 30 30 30 30 30 30 5 5 15 Final Carried 35 | 2 7 15 32 32 35 5 3 3 30 30 30 30 29 27 5 5 13 Class Distribution -------------------- 20% | Mutant 19% | Hauler-Gunner 15% | Scavenger-Scrapper 13% | Scavenger-Gunner 12% | Hauler-Mutant 6% | Scavenger-Tank 4% | Hauler-Scrapper Dominant Class ---------------- Mutant | -10/Materials Mutant | -10/Subcaves Hauler-Mutant | -7/Scraptown Scavenger-Scrapper | -5/Factory Scavenger-Scrapper | -5/Upper Caves Hauler-Gunner | -5/Upper Caves Scavenger-Mutant | -5/Zhirov Scavenger-Gunner | -4/Proximity Caves Scavenger-Gunner | -4/Factory Hauler-Gunner | -4/Upper Caves Hauler-Gunner | -4/Upper Caves Hauler-Gunner | -4/Warlord Hauler-Gunner | -3/Proximity Caves Scavenger-Scrapper | -3/Research Scavenger-Tank | -3/Quarantine Mutant | -2/Research Scavenger-Executioner | -2/Testing Resources | -11 -10 -10 -7 -5 -5 -5 -5 -4 -4 -4 -4 -4 -3 -3 -3 -2 -2 ----------- Run | Yrd Mat Sub Scr Fac Upp Upp Zhi Pro Fac Upp Upp War Pro Res Qua Res Tes Matter Collected 12265 | 212 22 387 423 921 253 683 . 206 2516 232 166 1047 357 2669 1043 166 962 Remotely 1208 | . . . . . . . . . . . . 591 . 617 . . . Salvage Created 22198 | . 22 307 282 2359 203 1000 . 201 4532 664 399 1585 460 3901 2856 445 2982 Parts 1066 | . 2 22 8 116 15 55 . 9 236 25 22 70 21 212 90 17 146 Haulers Intercepted 6 | . . . . 3 . . . . 3 . . . . . . . . Recyclers Shooed 5 | . . . . 1 . . . . 2 . . . . . . 1 1 Parts Field Recycled . | . . . . . . . . . . . . . . . . . . Retrieved Matter . | . . . . . . . . . . . . . . . . . . Parts Self-Destructed 125 | . . . . . 10 37 . 5 . 28 21 . 24 . . . . Prevented . | . . . . . . . . . . . . . . . . . . Kills | -11 -10 -10 -7 -5 -5 -5 -5 -4 -4 -4 -4 -4 -3 -3 -3 -2 -2 ------- Run | Yrd Mat Sub Scr Fac Upp Upp Zhi Pro Fac Upp Upp War Pro Res Qua Res Tes Combat Hostiles Destroyed 283 | . . 5 5 26 4 11 . 5 49 8 4 22 8 48 49 5 34 Melee 2 | . . . . . . . . . 1 . . . . . . 1 . Guns 200 | . . 1 . 25 4 10 . 5 48 8 4 22 8 47 12 1 5 Cannons 37 | . . 4 1 . . 1 . . . . . . . . 23 2 6 AOE 28 | . . . 4 1 . . . . . . . . . . 13 . 10 Classes Destroyed 32 | . 1 3 3 13 1 . . . 4 . . 3 1 2 1 . . Worker 20 | . 1 . . 6 . . . . 2 . . . . 4 3 1 3 Builder 14 | . . . . 3 . . . . 1 . . . . 7 . . 3 Tunneler 3 | . . . . 1 . . . . 1 . . . . 1 . . . Hauler 6 | . . . . 3 . . . . 3 . . . . . . . . Recycler 8 | . . . . 1 . . . . 3 . . . . 2 2 . . Mechanic 4 | . . . . . . . . . . . . . . 1 2 1 . Operator 1 | . . . . . . . . . 1 . . . . . . . . Watcher 6 | . . . . . . . . . . . . . . 2 1 . 3 Swarmer 34 | . . . . 3 4 . . 4 . . . 2 6 7 3 . 5 Cutter 4 | . . . . . . . . . 4 . . . . . . . . Saboteur 4 | . . . . . . . . . 1 . . 1 . 1 1 . . Grunt 125 | . . . . 11 . 11 . . 21 5 3 10 . 22 37 2 3 Brawler 5 | . . . . . . . . . 1 . 1 1 . 1 1 . . Duelist 3 | . . . . 1 . . . . 1 . . . . . 1 . . Protector 3 | . . . . . . . . . . . . 1 . 2 . . . Researcher 4 | . . . . . . . . . . . . . . . 3 . 1 Sentry 18 | . . . . 1 . . . 1 8 1 . . 1 1 . 1 4 Demolisher 3 | . . . . . . . . . . . . 3 . . . . . Specialist 9 | . . . . 2 . . . . 1 . . 1 . 2 . . 3 Hunter 30 | . . . . 3 . . . . 5 2 . 2 . 6 . 2 10 Programmer 31 | . . . . 4 . . . . 7 . . . . 6 6 . 8 Heavy 2 | . . . . 1 . . . . . . . . . 1 . . . Behemoth 1 | . . . . . . . . . . . . . 1 . . . . Striker 2 | . . . . . . . . . . . . 1 . . . . 1 Artisan 1 | . . 1 . . . . . . . . . . . . . . . Cobbler 1 | . . 1 . . . . . . . . . . . . . . . Subdweller 5 | . . 5 . . . . . . . . . . . . . . . Explorer 1 | . . . 1 . . . . . . . . . . . . . . Ranger 4 | . . . 1 . . 3 . . . . . . . . . . . Scrapper 3 | . . . 3 . . . . . . . . . . . . . . Scrapoid 5 | . . . . 3 . . . . . . 1 . . 1 . . . Samaritan 2 | . . . . . 2 . . . . . . . . . . . . Commander 1 | . . . . . . . . . . . . 1 . . . . . Best Kill Streak 13 | . 1 1 5 8 4 5 . 4 8 4 4 5 3 13 10 4 10 Combat Bots Only 12 | . . 1 5 5 4 5 . 4 8 4 4 5 3 10 7 3 12 Max Kills in Single Turn 6 | . 1 1 2 4 3 2 . 2 3 2 2 3 1 2 4 1 6 Gunslinging 2 | . . . . 1 2 1 . 1 1 . . 1 . 1 1 . . Exploded 4 | . . . 2 1 . . . . . . . . . . 3 . 4 Melee 1 | . . . . . . . . . 1 . . . . . . 1 . Uniques/NPCs Destroyed . | . . . . . . . . . . . . . . . . . . Combat | -11 -10 -10 -7 -5 -5 -5 -5 -4 -4 -4 -4 -4 -3 -3 -3 -2 -2 -------- Run | Yrd Mat Sub Scr Fac Upp Upp Zhi Pro Fac Upp Upp War Pro Res Qua Res Tes Hostile Shots Fired 1519 | . . 15 39 129 9 52 . 35 231 9 3 49 32 195 335 207 179 Missed 492 | . . 3 9 33 4 21 . 13 78 6 2 20 8 61 101 81 52 Hits 1027 | . . 12 30 96 5 31 . 22 153 3 1 29 24 134 234 126 127 Melee 19 | . . . . . . . . . 16 . . . . . 2 . 1 Projectile 1008 | . . 12 30 96 5 31 . 22 137 3 1 29 24 134 232 126 126 AOE 8 | . . . . . . . . . 3 . . 5 . . . . . Critical Strikes 70 | . . 2 3 4 . 2 . . 16 . . 1 . 6 18 8 10 Actively Blocked 19 | . . . . . . . . . . . . . . . 12 7 . Part Disruptions 2 | . . . . . . . . . 2 . . . . . . . . Damage Taken 20074 | . . 251 509 2162 75 602 . 373 3071 49 15 390 322 1999 3283 3027 3946 Core 3024 | . . 22 143 196 . 20 . 32 238 . . 16 34 183 688 667 785 Absorbed by Shields 2799 | . . . . . . . . . 439 32 8 370 313 609 1028 . . Reduced by Siege Mode 33 | . . . . . . . . . . . . . . . 33 . . Ignored by Resistances 1151 | . . . . . . . . . . . . . . . 647 . 504 Regen/Repaired (Parts) 506 | . . . . 31 . 55 . . 13 . . 157 3 169 56 22 . Core Remaining (%) 59 | 100 . . 34 . . . . 75 . . . . 74 . 14 . . Volleys Fired 761 | . 2 63 10 81 6 42 1 6 127 11 6 40 16 114 146 24 66 Largest 5 | . 2 2 2 4 4 4 1 4 5 4 4 4 4 4 4 3 5 Hottest 329 | . 40 100 100 126 132 138 . 138 237 132 132 132 132 212 300 183 329 Shots Fired 2120 | . 4 101 16 292 24 154 1 24 448 43 24 127 65 434 213 35 115 Gun 1765 | . 4 5 1 271 24 129 . 24 448 43 24 116 65 434 102 26 49 Cannon 282 | . . 96 11 19 . 24 . . . . . 1 . . 101 9 21 Launcher 58 | . . . 4 . . . . . . . . . . . 9 . 45 Special 15 | . . . . 2 . 1 1 . . . . 10 . . 1 . . Kinetic 1557 | . 4 49 8 171 24 129 . 24 412 43 24 116 65 396 60 12 20 Thermal 472 | . . 52 4 119 . 24 . . 36 . . 1 . 38 143 23 32 Explosive 12 | . . . 3 . . . . . . . . . . . 9 . . Electromagnetic 64 | . . . 1 . . . . . . . . . . . . . 63 Robot Hit Streak 19 | . 3 17 7 12 7 8 2 6 15 6 8 11 7 13 15 7 19 Robot Miss Streak 11 | . 1 2 2 11 3 4 . 2 5 3 2 2 3 7 4 2 4 Penetration Max 4 | . . . . 1 . 1 . 1 2 1 1 1 . 2 4 1 1 Secondary Targets 52 | . . . . 5 3 2 . 2 17 1 1 4 . 15 2 . . Max Gunslinging Chain 2 | . . . . 1 2 2 . 1 2 1 1 1 . 2 1 . . Shots Hit Robots 1189 | . 3 47 11 154 11 98 1 13 253 26 16 78 38 209 131 28 72 Core Hits 771 | . 2 14 10 89 7 38 . 6 139 13 7 48 19 132 121 15 111 Critical Kills 136 | . . . 1 7 3 9 . 3 50 8 5 20 5 14 11 . . Critical Parts Destroyed 125 | . . 1 . 7 . 9 . 4 50 10 4 11 3 9 15 . 2 Critical Strikes 298 | . . 1 1 21 3 18 . 7 110 19 10 36 9 28 30 1 4 Burn 20 | . . . . 6 . . . . 4 . . . . 5 4 1 . Destroy 276 | . . 1 1 15 3 18 . 7 106 19 10 36 9 23 26 . 2 Corrupt 1 | . . . . . . . . . . . . . . . . . 1 Impale 1 | . . . . . . . . . . . . . . . . . 1 Melee Attacks 11 | . . . . . . . . . . . . . . . . 5 6 Impact . | . . . . . . . . . . . . . . . . . . Slashing 3 | . . . . . . . . . . . . . . . . 3 . Piercing 8 | . . . . . . . . . . . . . . . . 2 6 Sneak Attacks . | . . . . . . . . . . . . . . . . . . Combat Hostiles . | . . . . . . . . . . . . . . . . . . Follow-up Attacks . | . . . . . . . . . . . . . . . . . . Damage Inflicted 40295 | . 33 728 602 4346 204 1402 . 195 3632 180 110 644 791 7848 11889 1026 6665 Guns 21793 | . 33 53 . 3881 204 1018 . 195 3466 180 110 644 791 7848 1902 502 966 Cannons 10175 | . . 675 151 249 . 384 . . . . . . . . 6915 298 1503 Explosions 7543 | . . . 451 216 . . . . 166 . . . . . 3072 . 3638 Melee 777 | . . . . . . . . . . . . . . . . 219 558 Ramming 7 | . . . . . . . . . . . . . . . . 7 . Kinetic 17792 | . 33 329 99 2466 204 1018 . 195 2885 180 110 644 791 7235 1094 220 289 Thermal 14843 | . . 399 52 1729 . 384 . . 581 . . . . 613 7834 580 2671 Explosive 3400 | . . . 370 . . . . . 69 . . . . . 2961 . . Electromagnetic 3476 | . . . 81 151 . . . . 97 . . . . . . . 3147 Impact . | . . . . . . . . . . . . . . . . . . Slashing 219 | . . . . . . . . . . . . . . . . 219 . Piercing 558 | . . . . . . . . . . . . . . . . . 558 Highest Corruption 25 | . . . . 2 2 2 2 2 7 7 7 7 2 7 12 . 25 Average Corruption 5 | . . . . 1 2 2 2 2 5 7 7 7 1 5 9 . 7 Corruption Purged . | . . . . . . . . . . . . . . . . . . Corruption Blocked . | . . . . . . . . . . . . . . . . . . Effects 232 | . . . . 15 7 9 5 4 42 20 17 3 . 19 59 . 32 Message Errors 60 | . . . . 1 . 3 2 1 14 6 1 . . 6 18 . 8 Matter Fused 48 | . . . . 2 2 . 1 2 3 4 6 . . 4 14 . 10 Heat Flow Errors 23 | . . . . 2 1 1 1 . 6 2 1 1 . 2 5 . 1 Energy Discharges 27 | . . . . 4 2 3 . . 3 2 3 1 . . 4 . 5 Parts Rejected 8 | . . . . 2 . . . . 4 . . . . . 1 . 1 Parts Fused 3 | . . . . . . . . 1 . . . . . . 2 . . Data Loss (minor) 26 | . . . . 1 2 1 . . 2 2 5 . . 1 10 . 2 Data Loss (major) 9 | . . . . 1 . . . . 1 3 . . . 1 2 . 1 Misfires 6 | . . . . 2 . . . . . . . . . 1 1 . 2 Alerts 8 | . . . . . . . 1 . 3 . 1 1 . 1 1 . . Weapon Failures 14 | . . . . . . 1 . . 6 1 . . . 3 1 . 2 Overload Shots . | . . . . . . . . . . . . . . . . . . Overflow Damage 1943 | . . . 5 4 . 10 . . . . . . . . 1332 7 585 Projectiles 1622 | . . . 5 4 . 10 . . . . . . . . 1259 7 337 Explosions 321 | . . . . . . . . . . . . . . . 73 . 248 Melee . | . . . . . . . . . . . . . . . . . . Knockbacks 9 | . . 3 . 5 . . . . . . . . . . . . 1 Impact . | . . . . . . . . . . . . . . . . . . Kinetic 8 | . . 3 . 4 . . . . . . . . . . . . 1 Secondary 1 | . . . . 1 . . . . . . . . . . . . . Self-Inflicted Damage 808 | . . . . . . . . . 46 . . . . . 153 1 608 Shots 52 | . . . . . . . . . 2 . . . . . 5 . 45 Rammed 1 | . . . . . . . . . . . . . . . . 1 . Targets Rammed 2 | . . . . . . . . . . . . . . . . 2 . Kicked 1 | . . . . . . . . . . . . . . . . 1 . Crushed . | . . . . . . . . . . . . . . . . . . Highest Temperature 748 | . . 2 410 322 189 184 218 178 360 175 140 169 285 484 400 52 748 Average Temperature 134 | . . 2 250 82 53 62 116 86 87 17 16 58 121 146 128 30 244 Received Heat Transfer 3048 | . . 30 315 510 . 259 . 18 448 12 8 242 12 227 724 153 90 Effects 56 | . . . 2 2 . . . . 4 . . . . 2 1 . 45 Shutdowns 12 | . . . . . . . . . 2 . . . . . . . 10 Energy Bleed 8 | . . . . 2 . . . . 1 . . . . 1 . . 4 Interference 9 | . . . 1 . . . . . 1 . . . . 1 . . 6 Matter Decay 4 | . . . . . . . . . . . . . . . . . 4 Short Circuit 4 | . . . 1 . . . . . . . . . . . . . 3 Damage (minor) 5 | . . . . . . . . . . . . . . . 1 . 4 Damage (major) 12 | . . . . . . . . . . . . . . . . . 12 Damage (core) 2 | . . . . . . . . . . . . . . . . . 2 Siege Activations 1 | . . . . . . . . . . . . . . . 1 . . Total Turns 3 | . . . . . . . . . . . . . . . 3 . . Longest Duration 3 | . . . . . . . . . . . . . . . 3 . . Martial Activations . | . . . . . . . . . . . . . . . . . . Shielding Activations . | . . . . . . . . . . . . . . . . . . Robots Disrupted 1 | . . . . . . . . . . . . . . . 1 . . Combat Hostiles 1 | . . . . . . . . . . . . . . . 1 . . Robots Corrupted 13 | . . . . . . . . . . . . . . . . . 13 Combat Hostiles 13 | . . . . . . . . . . . . . . . . . 13 Parts Fried 29 | . . . . . . . . . . . 1 . . . . . 28 Impact Corruptions . | . . . . . . . . . . . . . . . . . . Robots Melted 3 | . . . . . . . . . . . . . . 1 1 1 . Combat Hostiles 3 | . . . . . . . . . . . . . . 1 1 1 . Parts Melted 43 | . . 1 . 12 . . . . 11 . . 1 . 6 3 3 6 Heat Transferred 12696 | . . 851 75 3950 . 600 . . 1300 . . . . 1509 1843 909 1659 Parts Sabotaged . | . . . . . . . . . . . . . . . . . . Parts Stolen . | . . . . . . . . . . . . . . . . . . Parts Stripped . | . . . . . . . . . . . . . . . . . . Power Chain Reactions 10 | . . . 1 . . . . . . . . . . . 2 . 7 Alert | -11 -10 -10 -7 -5 -5 -5 -5 -4 -4 -4 -4 -4 -3 -3 -3 -2 -2 ------- Run | Yrd Mat Sub Scr Fac Upp Upp Zhi Pro Fac Upp Upp War Pro Res Qua Res Tes Maximum Alert Level 5 | . . . . 3 . . . . 4 . . . . 4 5 4 4 Low Security (%) 19 | 100 100 . . 23 . . . . 34 . . . . 17 . . . Level 1 14 | . . . . 31 . . . . 27 . . . . 17 . . . Level 2 22 | . . . . 30 . . . . 10 . . . . 17 . . 77 Level 3 22 | . . . . 13 . . . . 15 . . . . 14 38 94 11 Level 4 19 | . . . . . . . . . 12 . . . . 32 50 5 11 Level 5 . | . . . . . . . . . . . . . . . . . . High Security 2 | . . . . . . . . . . . . . . . 11 . . Max Security . | . . . . . . . . . . . . . . . . . . Peak Influence 1964 | . 5 . . 776 . . . . 1534 . . . . 1547 1964 1101 1478 Initial 1101 | . . . . . . . . . 22 . . . . 40 865 1101 618 Average 679 | . . . . 356 . . . . 477 . . . . 693 1220 1020 729 Influence Increases 10946 | . 5 . . 1347 90 250 . 170 2275 220 90 532 243 2149 1752 356 1467 Destroy 0b10 Robot/C 6040 | . . . . 620 80 220 . 100 1180 180 80 420 160 1160 1040 100 700 Destroy 0b10 Robot/NC 340 | . 5 . . 70 . . . . 60 . . 5 . 100 40 10 50 Destroy Leader 944 | . . . . 126 10 30 . 10 216 20 10 . 30 174 142 20 156 Allied During Kill 646 | . . . . 58 . . . . 238 20 . 107 8 215 . . . Successful Hack 27 | . . . . 14 . . . . 6 . . . . . . 7 . Disable Machine 885 | . . . . 150 . . . . 255 . . . . 90 255 15 120 Destroy Structure 1584 | . . . . 294 . . . . 320 . . . . 380 170 9 411 Partial Spotted 15 | . . . . . . . . . . . . . . . 15 . . Lose Combat Pursuer 465 | . . . . 15 . . . 60 . . . . 45 30 90 195 30 Influence Decreases 9485 | . 5 . . 604 515 507 61 134 783 852 441 645 615 670 1332 1214 1107 Entered New Map 4160 | . . . . . 275 61 61 . 14 566 171 545 432 20 674 858 483 Time Decay 4268 | . 5 . . 484 230 356 . 134 482 286 270 60 173 510 538 246 494 Lost Part 740 | . . . . 100 10 90 . . 90 . . . 10 80 120 110 130 Lost Ally 317 | . . . . 20 . . . . 197 . . 40 . 60 . . . Squads Dispatched 83 | . 1 . . 17 . . . . 19 . . . . 12 16 3 15 Investigation 10 | . . . . 4 . . . . 4 . . . . 1 . 1 . Extermination 12 | . . . . 2 . . . . 3 . . . . 2 2 . 3 Reinforcement 34 | . 1 . . 9 . . . . 5 . . . . 8 5 2 4 Assault 14 | . . . . . . . . . 4 . . . . 1 9 . . Garrison 13 | . . . . 2 . . . . 3 . . . . . . . 8 Intercept . | . . . . . . . . . . . . . . . . . . Searches Triggered . | . . . . . . . . . . . . . . . . . . Construction Impeded 11 | . . . . 4 . . . . 2 . . . . 2 1 . 2 Haulers Reinforced 7 | . . . . 3 . . . . 1 . . . . 2 . 1 . Active Scanning Responses . | . . . . . . . . . . . . . . . . . . Cargo Convoy Interrupts 1 | . . . . 1 . . . . . . . . . . . . . Stealth | -11 -10 -10 -7 -5 -5 -5 -5 -4 -4 -4 -4 -4 -3 -3 -3 -2 -2 --------- Run | Yrd Mat Sub Scr Fac Upp Upp Zhi Pro Fac Upp Upp War Pro Res Qua Res Tes Distress Signals 19 | . . . . 4 . . . . 6 . . 2 . 1 1 1 4 Communications Jammed 83 | . . . . . . . . . . . . . . 3 80 . . Distress Signals 83 | . . . . . . . . . . . . . . 3 80 . . Times Spotted 454 | . 2 8 14 43 4 15 . 9 68 8 4 37 11 63 92 30 46 Peak Tracking Total 18 | . 2 1 8 9 3 5 . 5 7 3 4 9 5 6 18 13 5 Tactical Retreats 24 | . . 3 . 1 . . . 4 . . . . 3 2 6 3 2 Traps | -11 -10 -10 -7 -5 -5 -5 -5 -4 -4 -4 -4 -4 -3 -3 -3 -2 -2 ------- Run | Yrd Mat Sub Scr Fac Upp Upp Zhi Pro Fac Upp Upp War Pro Res Qua Res Tes Traps Triggered 15 | . . . . . . . . . 4 . . . . 1 1 1 8 Indirectly 5 | . . . . . . . . . . . . . . . . . 5 Trap Hack Attempts . | . . . . . . . . . . . . . . . . . . Triggered . | . . . . . . . . . . . . . . . . . . Disarmed . | . . . . . . . . . . . . . . . . . . Reprogrammed . | . . . . . . . . . . . . . . . . . . Reused . | . . . . . . . . . . . . . . . . . . Traps Extracted . | . . . . . . . . . . . . . . . . . . Installed . | . . . . . . . . . . . . . . . . . . Triggered . | . . . . . . . . . . . . . . . . . . Machines | -11 -10 -10 -7 -5 -5 -5 -5 -4 -4 -4 -4 -4 -3 -3 -3 -2 -2 ---------- Run | Yrd Mat Sub Scr Fac Upp Upp Zhi Pro Fac Upp Upp War Pro Res Qua Res Tes Machines Disabled 66 | . . 1 3 10 . . . . 17 . . 2 . 6 18 1 8 Max in Single Turn 4 | . . 1 1 3 . . . . 4 . . 1 . 1 3 1 3 Garrison Access 1 | . . . . . . . . . 1 . . . . . . . . Machines Repaired . | . . . . . . . . . . . . . . . . . . Machines Dismantled . | . . . . . . . . . . . . . . . . . . Machines Sabotaged . | . . . . . . . . . . . . . . . . . . Overloaded Fab Kills . | . . . . . . . . . . . . . . . . . . Hacking | -11 -10 -10 -7 -5 -5 -5 -5 -4 -4 -4 -4 -4 -3 -3 -3 -2 -2 --------- Run | Yrd Mat Sub Scr Fac Upp Upp Zhi Pro Fac Upp Upp War Pro Res Qua Res Tes Machines Accessed 31 | . . 3 2 6 . . . . 7 1 . 3 . 4 1 3 1 Terminals 11 | . . . . 2 . . . . 2 . . . . 3 . 3 1 Fabricators . | . . . . . . . . . . . . . . . . . . Repair Stations . | . . . . . . . . . . . . . . . . . . Recycling Units 9 | . . . . 4 . . . . 4 . . . . 1 . . . Scanalyzers . | . . . . . . . . . . . . . . . . . . Garrison Access 2 | . . . . . . . . . 1 . . . . . 1 . . Total Hacks 48 | . . 4 6 10 . . . . 10 1 . 3 . 5 1 7 1 Successful 30 | . . 4 6 6 . . . . 7 1 . 3 . 1 . 1 1 Failed 18 | . . . . 4 . . . . 3 . . . . 4 1 6 . Catastrophic 5 | . . . . . . . . . . . . . . 2 1 2 . Database Lockouts . | . . . . . . . . . . . . . . . . . . Manual 24 | . . . . 9 . . . . 9 . . . . 3 . 3 . Terminals 20 | . . . . 5 . . . . 3 . . . . 4 . 7 1 Fabricators . | . . . . . . . . . . . . . . . . . . Repair Stations . | . . . . . . . . . . . . . . . . . . Recycling Units 12 | . . . . 5 . . . . 6 . . . . 1 . . . Scanalyzers . | . . . . . . . . . . . . . . . . . . Garrison Access 2 | . . . . . . . . . 1 . . . . . 1 . . Terminal Hacks 21 | . . 4 6 2 . . . . 3 1 . 3 . . . 1 1 Record 4 | . . 1 . . . . . . . . . 3 . . . . . Robot Analysis 5 | . . . 5 . . . . . . . . . . . . . . Open Door 2 | . . 1 . . . . . . . 1 . . . . . . . Branch Access Points 3 | . . . . 1 . . . . 1 . . . . . . 1 . Recycling Unit Index 2 | . . . . 1 . . . . 1 . . . . . . . . Alert Level 2 | . . . . . . . . . 1 . . . . . . . 1 Proto ID Catalog 2 | . . 1 1 . . . . . . . . . . . . . . Release Object 1 | . . 1 . . . . . . . . . . . . . . . Fabricator Hacks . | . . . . . . . . . . . . . . . . . . Repair Station Hacks . | . . . . . . . . . . . . . . . . . . Recycling Unit Hacks . | . . . . . . . . . . . . . . . . . . Scanalyzer . | . . . . . . . . . . . . . . . . . . Garrison Access Hacks 1 | . . . . . . . . . 1 . . . . . . . . Seal Access 1 | . . . . . . . . . 1 . . . . . . . . Unauthorized Hacks 8 | . . . . 4 . . . . 3 . . . . 1 . . . Terminals . | . . . . . . . . . . . . . . . . . . Fabricators . | . . . . . . . . . . . . . . . . . . Repair Stations . | . . . . . . . . . . . . . . . . . . Recycling Units 8 | . . . . 4 . . . . 3 . . . . 1 . . . Fedlink 3 | . . . . 3 . . . . . . . . . . . . . Scrapoids 5 | . . . . 1 . . . . 3 . . . . 1 . . . Scanalyzers . | . . . . . . . . . . . . . . . . . . Garrison Access . | . . . . . . . . . . . . . . . . . . Data Cores Recovered . | . . . . . . . . . . . . . . . . . . Used . | . . . . . . . . . . . . . . . . . . Hacking Detections 12 | . . . . 3 . . . . 2 . . . . 2 1 3 1 Full Trace Events 2 | . . . . . . . . . 1 . . . . . . 1 . Feedback Events . | . . . . . . . . . . . . . . . . . . Feedback Blocked . | . . . . . . . . . . . . . . . . . . Robot Schematics Acquired 2 | . . . . . . . . . . . . . . . . . 2 Robots Built . | . . . . . . . . . . . . . . . . . . Authchips . | . . . . . . . . . . . . . . . . . . Time . | . . . . . . . . . . . . . . . . . . Total Robot Build Rating . | . . . . . . . . . . . . . . . . . . Part Schematics Acquired 3 | . . . . . . . . . . . . . . . 1 . 2 Parts Built . | . . . . . . . . . . . . . . . . . . Authchips . | . . . . . . . . . . . . . . . . . . Time . | . . . . . . . . . . . . . . . . . . Total Part Build Rating . | . . . . . . . . . . . . . . . . . . Parts Repaired . | . . . . . . . . . . . . . . . . . . Time . | . . . . . . . . . . . . . . . . . . Parts Recycled . | . . . . . . . . . . . . . . . . . . Recycled Matter . | . . . . . . . . . . . . . . . . . . Retrieved Matter . | . . . . . . . . . . . . . . . . . . Retrieved Components . | . . . . . . . . . . . . . . . . . . Parts Scanalyzed . | . . . . . . . . . . . . . . . . . . Part Schematics Acquired . | . . . . . . . . . . . . . . . . . . Parts Damaged . | . . . . . . . . . . . . . . . . . . Bothacking | -11 -10 -10 -7 -5 -5 -5 -5 -4 -4 -4 -4 -4 -3 -3 -3 -2 -2 ------------ Run | Yrd Mat Sub Scr Fac Upp Upp Zhi Pro Fac Upp Upp War Pro Res Qua Res Tes Used RIF Installer . | . . . . . . . . . . . . . . . . . . Robots Hacked . | . . . . . . . . . . . . . . . . . . Non-combat . | . . . . . . . . . . . . . . . . . . Combat . | . . . . . . . . . . . . . . . . . . Robot Hacks Applied . | . . . . . . . . . . . . . . . . . . Relay Couplers Released 3 | . . . . . . . . . . . . . . . . . 3 Programmers 3 | . . . . . . . . . . . . . . . . . 3 Fabnet Peak Effective % . | . . . . . . . . . . . . . . . . . . Robots Rewired 5 | . . . . . . . . . . . . 5 . . . . . Allies Hacked 4 | . . . . . . . . . . . . . . 4 . . . Hacks Repelled . | . . . . . . . . . . . . . . . . . . Allies | -11 -10 -10 -7 -5 -5 -5 -5 -4 -4 -4 -4 -4 -3 -3 -3 -2 -2 -------- Run | Yrd Mat Sub Scr Fac Upp Upp Zhi Pro Fac Upp Upp War Pro Res Qua Res Tes Total Allies 31 | . . . . 5 . . 1 . 15 . . 5 . 5 . . . Largest Group 9 | . . . . 5 . . 1 1 9 1 1 5 2 7 . . . Highest-Rated Group 448 | . . . . 241 . . 41 41 409 47 47 297 128 448 . . . Highest-Rated Ally 64 | . . . . 50 . . 41 41 50 47 47 64 64 64 . . . Total Orders 5 | . . . . 2 . . . . . . 1 2 . . . . . STAY 4 | . . . . 2 . . . . . . 1 1 . . . . . FOLLOW 1 | . . . . . . . . . . . . 1 . . . . . Ally Attacks 302 | . . . . 51 . . . . 165 4 . 27 . 55 . . . Total Damage 7130 | . . . . 1043 . . . . 3302 83 . 1019 . 1683 . . . Kills 31 | . . . . 6 . . . . 11 1 . . . 13 . . . Allies Corrupted 2 | . . . . . . . . . 1 . . . . 1 . . . Allies Melted 3 | . . . 1 1 . . . . . . . 1 . . . . . Intel | -11 -10 -10 -7 -5 -5 -5 -5 -4 -4 -4 -4 -4 -3 -3 -3 -2 -2 ------- Run | Yrd Mat Sub Scr Fac Upp Upp Zhi Pro Fac Upp Upp War Pro Res Qua Res Tes Active Infowar (turns) 3923 | . . . . 838 . . . . . . . 2 . 1380 1703 . . Optics 996 | . . . . . . . . . . . . . . . 996 . . Sensors 376 | . . . . 376 . . . . . . . . . . . . . Terrain 851 | . . . . 9 . . . . . . . . . 842 . . . Seismic 456 | . . . . 456 . . . . . . . . . . . . . Cloaking 2 | . . . . . . . . . . . . 2 . . . . . Jamming 2241 | . . . . . . . . . . . . . . 538 1703 . . Robot Analysis Total 5 | . . . 5 . . . . . . . . . . . . . . Derelict Logs Recovered 7 | . . 1 3 . 1 . . 1 . 1 . . . . . . . Drone Launches . | . . . . . . . . . . . . . . . . . . Drone Recoveries . | . . . . . . . . . . . . . . . . . . Exploration | -11 -10 -10 -7 -5 -5 -5 -5 -4 -4 -4 -4 -4 -3 -3 -3 -2 -2 ------------- Run | Yrd Mat Sub Scr Fac Upp Upp Zhi Pro Fac Upp Upp War Pro Res Qua Res Tes Turns Passed 19882 | 89 353 2280 3147 1694 483 809 176 440 1756 639 580 1534 949 1380 1728 529 1316 Spaces Moved 9787 | 52 170 1288 1475 724 246 497 153 424 951 355 331 666 333 687 575 479 381 Core 286 | 4 . . . . . . . . . . . 6 . . 49 226 1 Treads 2516 | 48 170 1288 452 . . . . . . . . . . . 254 3 301 Legs 175 | . . . . . . . . . . . . . . . . 175 . Wheels 6739 | . . . 1023 724 246 497 153 424 951 355 331 660 333 687 272 4 79 Hover . | . . . . . . . . . . . . . . . . . . Flight 71 | . . . . . . . . . . . . . . . . 71 . Fastest Speed 40 | 50 160 160 160 170 180 80 80 100 90 160 170 160 170 160 50 40 170 Average Speed 172 | 151 160 160 207 194 186 134 87 100 133 169 170 198 170 169 245 86 259 Slowest Speed 3450 | 160 160 160 295 310 190 190 100 100 170 170 170 3350 170 170 450 330 3450 Overloaded Moves . | . . . . . . . . . . . . . . . . . . Propulsion Burnouts . | . . . . . . . . . . . . . . . . . . Robots Hopped 2 | . . . . . . . . . . . . . . . . 2 . Potential Cave-ins 16 | . . . . 2 . . . . 8 . . . . . 6 . . Cave-ins Triggered . | . . . . . . . . . . . . . . . . . . Exploration Rate (%) 43 | 3 35 67 80 21 38 51 57 60 24 48 58 56 55 17 62 19 40 Regions Visited 17 Branch Regions 12 Pre-discovered Areas 2 | . . . . 1 . . . . . 1 . . . . . . . Known Exits Taken 5 | . . . . 1 1 . . . 1 . . . . 1 . 1 . Unknown Exits Taken 12 | 1 1 1 1 . . 1 1 1 . 1 1 1 1 . 1 . . Scrap Searched 29 | . . 14 6 . 3 2 . 1 . 1 1 . 1 . . . . Spaces Dug 102 | . . 6 . 22 . . . . 13 . . . . 14 12 2 33 Terrain Destroyed 884 | . . 12 64 173 5 15 . 1 122 2 1 . 13 190 130 3 153 Melee 2 | . . . . . . . . . . . . . . . . 2 . Projectile 530 | . . 12 2 112 5 10 . 1 62 . . . 11 187 119 1 8 AOE 329 | . . . 62 61 . . . . 50 . . . . . 11 . 145 Terrain Rammed . | . . . . . . . . . . . . . . . . . . Walls Destroyed . | . . . . . . . . . . . . . . . . . . Machines Disabled . | . . . . . . . . . . . . . . . . . . Actions | -11 -10 -10 -7 -5 -5 -5 -5 -4 -4 -4 -4 -4 -3 -3 -3 -2 -2 --------- Run | Yrd Mat Sub Scr Fac Upp Upp Zhi Pro Fac Upp Upp War Pro Res Qua Res Tes Total 11903 | 59 247 1409 1544 889 260 568 194 429 1263 375 338 826 697 871 810 544 580 Wait 721 | . 64 35 . . . . 19 . 77 . . 79 342 23 23 . 59 Move 9766 | 51 169 1287 1474 723 245 496 152 423 950 354 330 665 332 686 574 474 381 Hop 2 | . . . . . . . . . . . . . . . . 2 . Pick Up 197 | 2 6 13 40 25 4 7 . . 39 5 1 6 . 13 15 5 16 Fast Attach 112 | 6 2 . . 13 2 4 11 . 19 . . 8 . 4 3 22 18 Attach 89 | . 1 1 5 16 2 3 1 . 9 1 . . 1 9 19 3 18 Detach 25 | . . . 1 3 . 1 . . 2 . . 1 . . 5 1 11 Swap 58 | . 1 2 4 6 1 2 . . 8 . . 9 6 12 6 . 1 Drop 132 | . 2 8 10 22 . 12 10 . 16 4 1 18 . 8 11 6 4 Fire 761 | . 2 63 10 81 6 42 1 6 127 11 6 40 16 114 146 24 66 Melee 11 | . . . . . . . . . . . . . . . . 5 6 Ram 1 | . . . . . . . . . . . . . . . . 1 . Kick 1 | . . . . . . . . . . . . . . . . 1 . Crush . | . . . . . . . . . . . . . . . . . . Escape Stasis 24 | . . . . . . . . . 16 . . . . . 8 . . Rewire 1 | . . . . . . . . . . . . . . 1 . . . Trap . | . . . . . . . . . . . . . . . . . . Miscellaneous 2 | . . . . . . 1 . . . . . . . 1 . . . Route ------- -11/Scrapyard -10/Materials (discovered 2 exits: [*Mat] / *Sub) -10/Subcaves (discovered 2 exits: [*Mat] / *Scr) -7/Scraptown (discovered 2 exits: *Fac x2) -5/Factory (discovered 2 exits: *Upp x2) -5/Upper Caves -5/Upper Caves (discovered 2 exits: *Fac / [*Zhi]) -5/Zhirov -4/Proximity Caves -4/Factory (discovered 3 exits: *Upp x2 / Arm) -4/Upper Caves -4/Upper Caves -4/Warlord -3/Proximity Caves -3/Research -3/Quarantine -2/Research (discovered 2 exits: *Tes x2) -2/Testing History --------- Turn | Location | Event 14 | -11/Scrapyard | Discovered new exit (range 15) 90 | -11/Scrapyard | Entered Materials 232 | -10/Materials | Discovered new exit (range 6) 308 | -10/Materials | Build established: Mutant 419 | -10/Materials | Discovered new exit (range 7) 443 | -10/Materials | Entered Subcaves 444 | -10/Subcaves | Approached by a straggling Scientist 658 | -10/Subcaves | Disturbed a concealed Subdweller 847 | -10/Subcaves | Discovered new exit (range 8) 1540 | -10/Subcaves | Scientist uncovered a shortcut to Scraptown 2351 | -10/Subcaves | Ambushed by angry Subdweller bent on revenge 2441 | -10/Subcaves | Learned location of 2 exits from Materials 2500 | -10/Subcaves | Visited 4L-MR0's lab 2523 | -10/Subcaves | Found Rainbow Chip 2603 | -10/Subcaves | A swath of the cavern ceiling suddenly collapsed 2723 | -10/Subcaves | Entered Scraptown 2855 | -7/Scraptown | Heard Great Nut preacher, LISTEN AND RECITE! 2875 | -7/Scraptown | Visited UFD Registry 2875 | -7/Scraptown | Registered with UFD as "Electrocell" 2909 | -7/Scraptown | Visited Scrap Suit Storage 2931 | -7/Scraptown | Visited Science Guys 2954 | -7/Scraptown | Visited Science Testing Area 2989 | -7/Scraptown | Visited Derelict Rescue Squad 3013 | -7/Scraptown | Visited Research Penetration Think Tank 3048 | -7/Scraptown | Visited Botcube Research 3074 | -7/Scraptown | Visited Analyses Database 3107 | -7/Scraptown | Visited Junk Repository 3237 | -7/Scraptown | Visited LU-1G1's Boring Crew 3755 | -7/Scraptown | Build established: Hauler-Mutant 3936 | -7/Scraptown | Visited Red Mages 3966 | -7/Scraptown | Visited SPCMW 3989 | -7/Scraptown | Visited Cave Peace 4042 | -7/Scraptown | Visited Bundlers 4716 | -7/Scraptown | Discovered new exit (range 11) 4792 | -7/Scraptown | Scanned Subdweller tech in exchange for log data 4797 | -7/Scraptown | Learned Research stockpile data 4801 | -7/Scraptown | Learned Factory emergency access door positions 5241 | -7/Scraptown | Delivered Scrap Shield to a Scientist 5388 | -7/Scraptown | Found DRS Beacon 5446 | -7/Scraptown | Found Botcube 5694 | -7/Scraptown | Met Optimus 5694 | -7/Scraptown | Accepted into 0bPrime 5773 | -7/Scraptown | Civil war broke out across Scraptown 5816 | -7/Scraptown | Discovered new exit (range 13) 5827 | -7/Scraptown | Core integrity fell below 50% 5843 | -7/Scraptown | Found Scrap Suit 5845 | -7/Scraptown | Lost 5 allies 5870 | -7/Scraptown | Entered Factory 5870 | -5/Factory | Evolved 10 slots: Power x1, Utility x7, Weapon x2 5935 | -5/Factory | Identified exit to Upper Caves 6018 | -5/Factory | Scrapoid reinforcements arrived 6065 | -5/Factory | Found Scrap Suit 6098 | -5/Factory | Found Scrap Suit 6138 | -5/Factory | Found Scrap Suit 6219 | -5/Factory | Loaded intel: 7 recycling unit locations 6392 | -5/Factory | Build established: Hauler-Scrapper 6406 | -5/Factory | Learned location of Protoforge (-3) 6723 | -5/Factory | Cargo convoy interrupted 6925 | -5/Factory | Build established: Scavenger-Scrapper 7525 | -5/Factory | Garrison activated, responded to threat 7534 | -5/Factory | Garrison activated, responded to threat 7564 | -5/Factory | Entered Upper Caves 7566 | -5/Upper Caves | UFD Scientist delivered a prototype 7584 | -5/Upper Caves | Lost 6 parts (2p1u3w) 7591 | -5/Upper Caves | Found Prototype Protection 7808 | -5/Upper Caves | Identified exit to Upper Caves 8047 | -5/Upper Caves | Entered another Upper Caves area 8073 | -5/Upper Caves | Discovered new exit (range 11) 8386 | -5/Upper Caves | Build established: Hauler-Gunner 8565 | -5/Upper Caves | Identified Enh. Scrap Shield 8570 | -5/Upper Caves | Lost 7 parts (2n4u1w) 8602 | -5/Upper Caves | Activated DRS Beacon 8610 | -5/Upper Caves | Discovered new exit (range 7) 8856 | -5/Upper Caves | Entered Zhirov 8856 | -5/Zhirov | Discovered new exit (range 3) 8874 | -5/Zhirov | Met Zhirov 8933 | -5/Zhirov | Found Alien Artifact 8933 | -5/Zhirov | Identified Integrated Reactor 8933 | -5/Zhirov | Installed Integrated Reactor, increased core energy generation (+10) 8961 | -5/Zhirov | Botcube activated 8967 | -5/Zhirov | Botcube completed mutation into legged form (unarmed). 9032 | -5/Zhirov | Entered Proximity Caves 9032 | -4/Proximity Caves | Accompanied by 1 ally 9112 | -4/Proximity Caves | Spotted B-86 Titan 9312 | -4/Proximity Caves | Build established: Scavenger-Gunner 9319 | -4/Proximity Caves | Attracted the attention of an 0b10 checkpoint 9422 | -4/Proximity Caves | Learned Research non-interactive machine intel 9445 | -4/Proximity Caves | Discovered new exit (range 7) 9472 | -4/Proximity Caves | Entered Factory 9472 | -4/Factory | Evolved 2 slots: Utility x2 9473 | -4/Factory | Attached Rainbow Chip, gained temporary slots: Power, Propulsion, Utility, Weapon 9508 | -4/Factory | Identified exit to Upper Caves 9508 | -4/Factory | Identified exit to Armory 9647 | -4/Factory | Scrapoid reinforcements arrived 9751 | -4/Factory | Lost 5 allies 9772 | -4/Factory | Found Scrap Suit 9776 | -4/Factory | Destroyed 7 combat bots 10518 | -4/Factory | Garrison activated, responded to threat 10577 | -4/Factory | Destroyed 8 combat bots 10613 | -4/Factory | Lost 3 parts (1p1n1u) 10867 | -4/Factory | Build established: Hauler-Gunner 10898 | -4/Factory | Scrapoid reinforcements arrived 10972 | -4/Factory | First assault squad dispatched 11005 | -4/Factory | Scrapoids reinforcements arrived? 11077 | -4/Factory | Found Scrap Suit 11106 | -4/Factory | Lost 6 allies 11228 | -4/Factory | Entered Upper Caves 11228 | -4/Upper Caves | Accompanied by 1 ally 11796 | -4/Upper Caves | Attracted the attention of an 0b10 checkpoint 11826 | -4/Upper Caves | Learned location of Testing (-2) 11840 | -4/Upper Caves | Discovered new exit (range 8) 11867 | -4/Upper Caves | Entered another Upper Caves area 11867 | -4/Upper Caves | Accompanied by 1 ally 11868 | -4/Upper Caves | Encountered a Warlord checkpoint 12377 | -4/Upper Caves | Discovered new exit (range 7) 12447 | -4/Upper Caves | Entered Warlord 12514 | -4/Warlord | System corruption cleaned by Quarantine Array 12737 | -4/Warlord | Learned Research stockpile data 12738 | -4/Warlord | Learned 4 Armory zone layouts 12740 | -4/Warlord | Learned Research terminal intel 12920 | -4/Warlord | Received a Watcher feed algorithm from an ecstatic Tinkerer 12923 | -4/Warlord | Build established: Scavenger-Gunner 13427 | -4/Warlord | Warlord's base attacked by MAIN.C 13476 | -4/Warlord | Found Prototype Reactor 13476 | -4/Warlord | Identified Vortex Chain Reactor 13481 | -4/Warlord | Found Prototype Device 13481 | -4/Warlord | Identified Exp. Cloaking Device 13496 | -4/Warlord | Found Prototype Device 13496 | -4/Warlord | Identified Exp. Focal Shield 13500 | -4/Warlord | Found Prototype Processor 13500 | -4/Warlord | Identified Exp. Core Analyzer 13616 | -4/Warlord | Spotted B-90 Cyclops 13711 | -4/Warlord | Build established: Hauler-Gunner 13777 | -4/Warlord | Warlord forces counterattacked 13801 | -4/Warlord | Destroyed 8J-2QE(g) 13805 | -4/Warlord | Spotted B-86 Titan 13839 | -4/Warlord | Lost 4 allies 13857 | -4/Warlord | Spotted B-90 Cyclops 13868 | -4/Warlord | Spotted B-90 Cyclops 13870 | -4/Warlord | Spotted B-86 Titan 13927 | -4/Warlord | Lost 9 allies 13936 | -4/Warlord | Discovered new exit (range 14) 13958 | -4/Warlord | Destroyed Striker 13981 | -4/Warlord | Entered Proximity Caves 13981 | -3/Proximity Caves | Accompanied by 3 allies 13983 | -3/Proximity Caves | Attracted the attention of an 0b10 checkpoint 14013 | -3/Proximity Caves | Lost 12 allies 14151 | -3/Proximity Caves | Received a Behemoth hack from an annoying Tinkerer 14741 | -3/Proximity Caves | Spotted B-86 Titan 14753 | -3/Proximity Caves | Destroyed B-86 Titan 14822 | -3/Proximity Caves | Discovered new exit (range 8) 14930 | -3/Proximity Caves | Entered Research 14930 | -3/Research | Accompanied by 2 allies 14930 | -3/Research | Evolved 2 slots: Power x1, Utility x1 14931 | -3/Research | Identified exit to Quarantine 14933 | -3/Research | Loaded intel: 80 non-interactive machine locations 14934 | -3/Research | Loaded intel: 21 terminal locations 15046 | -3/Research | Build established: Scavenger-Scrapper 15337 | -3/Research | Scrapoid reinforcements arrived 15604 | -3/Research | P-80 Master assimilated allied 03R23-D 15608 | -3/Research | P-80 Master assimilated allied Archangel 7b 15636 | -3/Research | Lost 3 allies 15680 | -3/Research | First assault squad dispatched 15821 | -3/Research | Destroyed 10 combat bots 16308 | -3/Research | Destroyed 10 combat bots 16310 | -3/Research | Entered Quarantine 16560 | -3/Quarantine | First assault squad dispatched 16582 | -3/Quarantine | Found Alien Artifact 16682 | -3/Quarantine | Found Alien Energy Cannon 16830 | -3/Quarantine | Identified Core Cannon 16915 | -3/Quarantine | Found Alien Artifact 16959 | -3/Quarantine | Identified Subatomic Replicator 16959 | -3/Quarantine | Identified Terrabomb 16959 | -3/Quarantine | Used Terrabomb 16987 | -3/Quarantine | Destroyed 7 combat bots 17310 | -3/Quarantine | Build established: Scavenger-Tank 17423 | -3/Quarantine | System corruption reached 10% 17473 | -3/Quarantine | Scanned by Researcher 17648 | -3/Quarantine | Found Alien Slashing Weapon 17824 | -3/Quarantine | Found Alien Impact Weapon 17846 | -3/Quarantine | High security lockdown imminent 17901 | -3/Quarantine | Destroyed 7 combat bots 17911 | -3/Quarantine | Core integrity fell below 50% 17926 | -3/Quarantine | High security lockdown engaged 18013 | -3/Quarantine | Released all parts (15) 18024 | -3/Quarantine | Discovered new exit (range 11) 18034 | -3/Quarantine | Core integrity fell below 20% 18038 | -3/Quarantine | Entered Research 18038 | -2/Research | Evolved 2 slots: Weapon x2 18317 | -2/Research | Build established: Mutant 18390 | -2/Research | Identified Sigix Broadsword 18409 | -2/Research | Released all parts (4) 18438 | -2/Research | Lost 6 parts (1p5w) 18533 | -2/Research | Spotted B-90 Cyclops 18543 | -2/Research | Found Unknown Launcher 18545 | -2/Research | Found Unknown Launcher 18547 | -2/Research | Identified exit to Testing 18567 | -2/Research | Entered Testing 18727 | -2/Testing | Identified Gamma Bomb Array (x2) 18815 | -2/Testing | Core integrity fell below 50% 18851 | -2/Testing | Found Hvy. Reactive Plating 18855 | -2/Testing | Found Hvy. Reactive Plating 18860 | -2/Testing | Found Hvy. Reactive Plating 18865 | -2/Testing | Found Hvy. Reactive Plating 18943 | -2/Testing | Build established: Scavenger-Tank 19005 | -2/Testing | Core integrity fell below 20% 19254 | -2/Testing | Garrison activated, responded to threat 19439 | -2/Testing | Build established: Scavenger-Executioner 19466 | -2/Testing | Found Prototype Energy Cannon 19468 | -2/Testing | Identified Imp. Potential Cannon 19666 | -2/Testing | Spotted Striker 19681 | -2/Testing | System corruption reached 10% 19684 | -2/Testing | Destroyed Striker 19703 | -2/Testing | Lost 5 parts (3u2w) 19720 | -2/Testing | Destroyed 12 combat bots 19744 | -2/Testing | Garrison activated, responded to threat 19856 | -2/Testing | Found Prototype Device 19856 | -2/Testing | Identified Exp. EM Disruption Field 19883 | -2/Testing | Destroyed by P-80 Master with Gamma Rifle Last Messages --------------- 19870_ 0/S&7ONIAMQD SJD7AYB783A>VQBIAIIC 19878_ U-05 Engineer lays Concrete. 19880_ U-05 Engineer builds a Wall. 19880_ Cld. Antimatter Reactor destroyed. 19880_ Hvy. Reactive Plating destroyed. Map ----- +----------------------------------------------------+ | # #?????????????????????????????????????? | | # ####??????????????????????????????????? | | """ # #??????????????????????????????????? | | """" + ###????????????????????????????????? | | "" # + """???????????????????????????? | | " # ### ?????????????????????????? | | "" # #?????? ????????????????????????? | | "" " # #??????????????????????????????????? | | """" # | #??????????????????????????????????? | | """" # ! #??????????????????????????????????? | | # %#??????????????????????????????????? | | # #????????????#?????????????????????? | | ########## #???????????# "??? ??????????????? | | # # #???????????# """" #????????????? | | # # #?????????? # """" #????????????? | | # """ + #???????"" ?# " " ] +????????????? | | # """ # %#???????"" # #????????????? | | # """ # %#?????? / #????????????? | | # """"" # % #?????? ??# #????????????? | | ? # %#######+##??# ?????????????? | | # # % ####; # ; ####???????????? | | # # !! # #???????????? | | ########## ! |[! # #???????????? | | ????###### * = =%! # #???????????? | | ?? ## !=!|!!| # #???????????? | | ? """""" ## !* ! #[@! [ ! = #???????????? | | # """""" ## "" ;p |= #???????????? | | # """""" ## """ # #;;;;%[;####???######### | | # ## """ ## # ###????# # | | # " " = # """ [ [ != ;;###### # | | # "R" + """ =! ! # # | | # """ # *%= = + """ # | | # ! + | ;;;##### """ # | | ###########+######## ####### *; #???# """ # | | ????# # #????# ## # ???######### | | ????# """ # #????# ;#####?######?? | | ????# "" "" """ # #????# = #?# """### | | ????# ""F"" """ # #????# [ " #?# " # | | ????# """ # #????# = #?# # | | ????# # #????# = "###### "## | | ????################/##???# %[ #=|# " "# | | ???????????????#= #???# [ " #= " """ "# | | ???????????????# #???# " " # ######## | | ??????########## #???# " "" # #??????? | | ??????# # #??##" " """ # #??????? | | ??????# + #### # " """ # #??????? | | ??????# # ## # #! # #??????? | | ??????# #/##/#### = =# """ + #??????? | | ??????# ! / ! * #% """ # #??????? | | ??????# # = !% # """ # #??????? | +----------------------------------------------------+ Best States ------------- Heat Dissipation 122 Coolant Potential 65 Energy Generation 80 Energy Capacity 1500 Matter Stores 300 Matter Capacity 300 Sight Range 22 Robot Scan Range 16 Terrain Scan Range 20 Terrain Scan Density 10 Jamming Range 16 Power Amplification 30 Base Temperature (-) 200 Armor Coverage 2400 Resistance: KI 40 Resistance: TH 25 Weapon Cycling 20 Phase Shifting 15 Evasion (%) 74 Targeting Accuracy 6 Target Analysis 6 Core Analysis 8 Recoil Reduction 2 Matter Filtering 50 Energy Filtering 50 Offensive Hacking 33 Item Schematics ----------------- Exp. Core Shielding | -3/Quarantine | Archive Imp. Diametric Drive | -2/Testing | Archive Cld. Nuclear Pulse Thruster | -2/Testing | Archive Robot Schematics ------------------ R-10 Processor | -2/Testing | Archive R-06 Scavenger | -2/Testing | Archive Fabricated ------------ Nothing Repaired ---------- Nothing Alien Tech Used ----------------- Integrated Reactor Core Cannon Subatomic Replicator Terrabomb Sigix Broadsword Achievements -------------- None Challenges ------------ None Game ------ Seed LargeDataPrototype Manual? 0 Play Time 02:32:33 Cumulative 325.5 hours Start 2025.06.18 @ 16:57:03 End 2025.06.18 @ 20:26:58 Sessions 1 Manual Loads 0 Difficulty Rogue Special Mode None Game No. 311 Rogue 275 Adventurer 36 Explorer 0 Win Type - Total 11 Types 4/0/7/0/0/0/0/0/0/0 Lore% 69 Gallery% 81 Achievement% 74 Wizard Run 0 Options --------- Layout 0 ASCII 0 Keyboard 0 Movement Mouse Keybinds 0 Fullscreen 1 Font 18/SmallcapsGlow Map View 76x50 Zoom Use 0% Tactical HUD 1 Map Filters NONE Filters NONE Steam 1 RUN: e65ea048-bc81-4760-a998-149881fd08f6